fUSD/lending_fUSD_20240216
["ID","MTS","AMOUNT","RATE_DAILY","PERIOD"]
[314184399,1708051841001,-301.90055941,0.000397,2]
[314184400,1708051841010,-155.01,0.000397,3]
[314184401,1708051841018,-460.39,0.000397,3]
[314184402,1708051841028,-460.39,0.000397,3]
[314184403,1708051841037,-460.39,0.000397,3]
[314184404,1708051841046,-460.39,0.000397,3]
[314184405,1708051841055,-460.39,0.000397,3]
[314184406,1708051841064,-460.39,0.000397,3]
[314184407,1708051841073,-460.39,0.000397,3]
[314184408,1708051841082,-460.39,0.000397,3]
[314184409,1708051841091,-460.39,0.000397,3]
[314184410,1708051841101,-460.39,0.000397,3]
[314184411,1708051841110,-460.39,0.000397,3]
[314184412,1708051841123,-460.39,0.000397,3]
[314184413,1708051841132,-460.39,0.000397,3]
[314184414,1708051841141,-460.39,0.000397,3]
[314184415,1708051841150,-460.39,0.000397,3]
[314184416,1708051841159,-460.39,0.000397,3]
[314184417,1708051841168,-460.39,0.000397,3]
[314184418,1708051841177,-460.39,0.000397,3]
[314184419,1708051841186,-460.39,0.000397,3]
[314184420,1708051841195,-460.39,0.000397,3]
[314184421,1708051841204,-500.0,0.00039726,7]
[314184422,1708051841213,-987.20014608,0.00039726,30]
[314184423,1708051841222,-500.0,0.00039726,7]
[314184424,1708051841231,-546.94,0.00039726,7]
[314184425,1708051841240,-605.6,0.00039726,7]
[314184426,1708051841249,-500.0,0.00039726,7]
[314184427,1708051841258,-500.0,0.00039726,7]
[314184428,1708051841267,-500.0,0.00039726,7]
[314184429,1708051841276,-1555.25,0.00039726,7]
[314184430,1708051841285,-737.1,0.00039726,7]
[314184431,1708051841294,-500.0,0.00039726,7]
[314184432,1708051841303,-535.42,0.00039726,7]
[314184433,1708051841312,-500.0,0.00039726,7]
[314184434,1708051841321,-500.0,0.00039726,7]
[314184435,1708051841330,-500.0,0.00039726,7]
[314184436,1708051841340,-1217.51,0.00039726,7]
[314184437,1708051841349,-500.0,0.00039726,7]
[314184438,1708051841358,-500.0,0.00039726,7]
[314184439,1708051841367,-526.47,0.00039726,7]
[314184440,1708051841378,-500.0,0.00039726,7]
[314184441,1708051841387,-6327.73,0.00039726,7]
[314184442,1708051841396,-500.0,0.00039726,7]
[314184443,1708051841405,-638.26,0.00039726,7]
[314184444,1708051841414,-500.0,0.00039726,7]
[314184445,1708051841424,-531.59,0.00039726,7]
[314184446,1708051841433,-7015.68,0.00039726,7]
[314184447,1708051841442,-115.1867608,0.00039726,7]
[314184448,1708051841455,-384.8132392,0.00039726,7]
[314184449,1708051841464,-110.8725621,0.00039726,7]
[314184452,1708051841559,-500.0,0.0003863,7]
[314184453,1708051841568,-500.0,0.00038904,7]
[314184454,1708051841578,-500.0,0.00039178,7]
[314184455,1708051841587,-0.21843679,0.00039343,2]
[314184456,1708051841599,-150.46056321,0.00039343,2]
[314184457,1708051841608,-500.0,0.00039452,7]
[314184458,1708051841617,-389.1274379,0.00039726,7]
[314184459,1708051841626,-1252.74287094,0.00039726,7]
[314184460,1708051841770,-95.11712906,0.00039726,7]
[314184461,1708051841779,-500.0,0.00039726,7]
[314184462,1708051841789,-1014.03,0.00039726,7]
[314184463,1708051841798,-500.0,0.00039726,7]
[314184464,1708051841807,-500.0,0.00039726,7]
[314184465,1708051841816,-525.93,0.00039726,7]
[314184466,1708051841826,-506.15,0.00039726,7]
[314184467,1708051841835,-500.0,0.00039726,7]
[314184468,1708051841845,-615.1,0.00039726,7]
[314184469,1708051841854,-500.0,0.00039726,7]
[314184470,1708051841863,-500.0,0.00039726,7]
[314184471,1708051841872,-766.0,0.00039737,7]
[314184472,1708051841882,-458.0,0.00039737,7]
[314184473,1708051841891,-509.0,0.00039737,7]
[314184474,1708051841900,-150.0,0.00039737,7]
[314184475,1708051841909,-14845.67785337,0.0003974,4]
[314184476,1708051841921,-623.31486525,0.0003974,4]
[314184477,1708051841932,-59740.86224908,0.0003974,4]
[314184478,1708051841941,-497.0,0.0003976,2]
[314184479,1708051841951,-75209.8549677,0.0003976,4]
[314184480,1708051841960,-150419.709935,0.0003977,4]
[314184481,1708051841969,-161.75480484,0.00039777,2]
[314184482,1708051841978,-567.58661431,0.00039777,2]
[314184483,1708051841987,-263.96651938,0.00039777,2]
[314184484,1708051841997,-5664.52389188,0.00039777,2]
[314184485,1708051842006,-1222.98041014,0.00039779,2]
[314184486,1708051842015,-74615.89693682,0.0003978,2]
[314184487,1708051842026,-170384.10306318,0.0003978,2]
[314184488,1708051842035,-153.53778306,0.0003978,2]
[314184489,1708051842045,-2228.47834375,0.0003978,2]
[314184490,1708051842054,-498.7509207,0.00039788,9]
[314184491,1708051842063,-1424.0,0.0003979,2]
[314184492,1708051842072,-155.04,0.00039831,2]
[314184493,1708051842081,-20918.3861352,0.0003985,5]
[314184494,1708051842093,-399.8136987,0.0003985,5]
[314184495,1708051842145,-150.0,0.00039481,2]
[314184496,1708051842154,-150.0,0.00039566,2]
[314184497,1708051842163,-2964.40141104,0.0003985,5]
[314184498,1708051842174,-284.58000008,0.0003985,5]
[314184499,1708051842186,-511.0088,0.0003985,5]
[314184500,1708051842197,-534.5611739,0.0003985,5]
[314184501,1708051842208,-262.39044426,0.0003985,5]
[314184503,1708051842741,-338.72698102,0.0003985,5]
[314184504,1708051842754,-1613.44020906,0.0003985,5]
[314184505,1708051842854,-3176.65846838,0.0003985,5]
[314184506,1708051842868,-44205.88764606,0.0003985,5]
[314184507,1708051842878,-151.0,0.00039859,7]
[314184508,1708051842889,-721.17521344,0.0003986,2]
[314184509,1708051842898,-3000.0,0.00039863,2]
[314184510,1708051842909,-450.24,0.00039868,2]
[314184511,1708051842919,-150419.709935,0.0003987,5]
[314184512,1708051842930,-5048.22649408,0.00039877,2]
[314184513,1708051842939,-155.0,0.00039879,2]
[314184514,1708051842948,-150.01,0.00039879,2]
[314184515,1708051842958,-3316.80182207,0.00039879,2]
[314184516,1708051842967,-5000.0,0.00039879,14]
[314184517,1708051842976,-1000.0,0.00039879,14]
[314184518,1708051842985,-846741.53330569,0.0003988,2]
[314184519,1708051843000,-178615.90043309,0.0003988,2]
[314184520,1708051843012,-40548.10055742,0.0003988,2]
[314184527,1708051847437,-8505.3,0.00037697,4]
[314184528,1708051847449,-845.53836536,0.00037697,4]
[314184529,1708051847459,-500.0,0.00038356,7]
[314184530,1708051847469,-500.0,0.00038356,7]
[314184531,1708051847478,-487.96607391,0.0003863,7]
[314184532,1708051847488,-1039.88368114,0.00039879,4]
[314184533,1708051847501,-521.46508371,0.00039879,4]
[314184534,1708051847529,-1330.46815826,0.00039879,4]
[314184535,1708051847538,-3085.84184174,0.0003988,2]
[314184536,1708051870046,57834.47632426,0.00023,2]
[314184539,1708052029619,163706.18440012,0.00023,2]
[314184545,1708052584725,256.31481856,0.000303,120]
[314184546,1708052765122,200.14459119,0.0002301,120]
[314184561,1708053031945,-721.8891296,0.00024989,2]
[314184562,1708053031955,-161.75480484,0.0002499,2]
[314184563,1708053031964,-1250.0,0.00025,3]
[314184564,1708053031973,-5542.7476156,0.0002509,2]
[314184565,1708053031983,-2463.71842844,0.0002509,2]
[314184566,1708053031992,-159.0,0.00026,5]
[314184567,1708053032001,-73.24396861,0.00027,15]
[314184568,1708053032015,-76.75603139,0.00027,15]
[314184569,1708053032027,-180.38289039,0.000272,2]
[314184570,1708053032045,-436.78617378,0.000272,2]
[314184571,1708053032058,-4450.07488838,0.000272,2]
[314184572,1708053032114,-167.27579385,0.000272,2]
[314184573,1708053032123,-155.0,0.00028999,2]
[314184574,1708053032133,-244.86420615,0.00029,15]
[314184575,1708053032145,-1069.77228372,0.00029,15]
[314184576,1708053032224,-323.26186872,0.00029,15]
[314184578,1708053037972,-7927.31680237,0.00029,15]
[314184579,1708053037985,-26866.01472256,0.00029,15]
[314184580,1708053037994,-1261.96526404,0.00033,2]
[314184581,1708053038004,-422.45,0.00033577,2]
[314184582,1708053038018,-270.15,0.00034245,2]
[314184583,1708053038028,-150.0,0.00034313,2]
[314184584,1708053038038,-403.08,0.00034521,2]
[314184585,1708053038048,-2500.0,0.00035,2]
[314184586,1708053038058,-1545.07418798,0.00035044,10]
[314184587,1708053038069,-3069.04952849,0.00035044,10]
[314184588,1708053038078,-499.99,0.00035044,2]
[314184589,1708053038088,-2030.67407599,0.00035044,10]
[314184590,1708053038098,-558.4353709,0.00035044,10]
[314184591,1708053038109,-729.85,0.00035319,2]
[314184592,1708053038119,-3391.73,0.0003541,2]
[314184593,1708053038128,-250.0,0.00035444,2]
[314184594,1708053038139,-250.0,0.00035476,2]
[314184595,1708053038150,-2000.0,0.00035556,2]
[314184596,1708053038160,-228.87,0.00035627,2]
[314184597,1708053038169,-14006.0305784,0.00035676,2]
[314184598,1708053038183,-1792.04521374,0.00035676,2]
[314184599,1708053038204,-8101.92420786,0.00035676,2]
[314184600,1708053038214,-403.08,0.00035798,2]
[314184601,1708053038223,-422.45,0.00035841,2]
[314184602,1708053038232,-250.0,0.00035979,111]
[314184603,1708053038242,-197.75,0.0003623,2]
[314184604,1708053038251,-206.0,0.00036332,2]
[314184605,1708053038261,-154.63,0.00036417,2]
[314184606,1708053038270,-393.94,0.00036602,2]
[314184607,1708053038280,-175.0,0.00036708,7]
[314184608,1708053038289,-175.0,0.00036845,7]
[314184609,1708053038298,-175.0,0.00036982,7]
[314184610,1708053038306,-403.08,0.00037075,2]
[314184611,1708053038315,-175.0,0.00037119,7]
[314184612,1708053038324,-152.0,0.00037174,3]
[314184613,1708053038333,-175.0,0.00037256,7]
[314184614,1708053038343,-228.87,0.0003727,2]
[314184615,1708053038352,-175.0,0.00037393,7]
[314184616,1708053038362,-39488.7513,0.00037488,2]
[314184617,1708053038372,-3004.6669,0.00037498,2]
[314184618,1708053038382,-466.2909,0.00037498,2]
[314184619,1708053038392,-1830.5033,0.00037498,2]
[314184620,1708053038401,-1109.9178,0.00037498,2]
[314184621,1708053038411,-453.84076438,0.00037501,8]
[314184622,1708053038422,-157.52023731,0.00037501,8]
[314184623,1708053038432,-467.88239404,0.00037501,8]
[314184624,1708053038442,-175.0,0.0003753,7]
[314184625,1708053038451,-58414.6513183,0.00037588,10]
[314184626,1708053038462,-2891.81692311,0.00037597,4]
[314184627,1708053038473,-245000.0,0.00037598,2]
[314184628,1708053038483,-175.0,0.00037667,7]
[314184629,1708053038492,-3245.25840657,0.00037689,10]
[314184630,1708053038501,-32452.5840657,0.0003769,10]
[314184631,1708053038511,-6545.58685575,0.00037699,4]
[314184632,1708053038520,-39904.51713644,0.000377,3]
[314184633,1708053038529,-175.0,0.00037804,7]
[314184634,1708053038540,-155.0,0.0003782,2]
[314184635,1708053038549,-175.0,0.00037941,7]
[314184636,1708053038558,-3245.25840657,0.00038071,10]
[314184637,1708053038569,-175.0,0.00038078,7]
[314184638,1708053038579,-422.45,0.00038105,2]
[314184639,1708053038590,-3245.25840657,0.00038162,10]
[314184640,1708053038599,-5541.31103016,0.00038172,5]
[314184641,1708053038609,-177.38,0.0003818,2]
[314184642,1708053038619,-175.03210095,0.00038195,4]
[314184643,1708053038629,-175.0,0.00038215,7]
[314184644,1708053038640,-217.32793787,0.00038216,5]
[314184645,1708053038649,-276.95103273,0.00038216,5]
[314184646,1708053038659,-276.95103272,0.00038216,5]
[314184647,1708053038668,-217.06203515,0.00038216,4]
[314184648,1708053038678,-856.67600624,0.00038216,3]
[314184649,1708053038687,-350.45836619,0.00038216,3]
[314184650,1708053038696,-3245.25840657,0.00038218,10]
[314184651,1708053038705,-453.84076438,0.00038228,8]
[314184652,1708053038714,-467.88239403,0.00038228,8]
[314184653,1708053038725,-154.63,0.00038238,2]
[314184654,1708053038734,-151.021624,0.00038248,25]
[314184655,1708053038754,-2318.47315309,0.00038248,2]
[314184656,1708053038765,-29207.3256591,0.00038313,10]
[314184657,1708053038776,-12981.0336263,0.00038346,10]
[314184658,1708053038786,-151.021624,0.00038348,24]
[314184659,1708053038797,-175.0,0.00038352,7]
[314184660,1708053038807,-403.08,0.00038352,2]
[314184661,1708053038816,-1926.23,0.00038356,7]
[314184662,1708053038826,-500.0,0.00038356,7]
[314184663,1708053038838,-500.0,0.00038356,7]
[314184664,1708053038848,-500.0,0.00038356,7]
[314184665,1708053038858,-210.03716783,0.00038356,7]
[314184666,1708053038867,-500.0,0.00038356,7]
[314184667,1708053038877,-500.0,0.00038356,7]
[314184668,1708053038886,-500.0,0.00038356,7]
[314184669,1708053038896,-500.0,0.00038356,7]
[314184670,1708053038907,-500.0,0.00038356,7]
[314184671,1708053038917,-500.0,0.00038356,7]
[314184672,1708053038926,-500.0,0.00038356,7]
[314184673,1708053039139,-500.0,0.00038356,7]
[314184674,1708053039149,-587.32033548,0.00038356,7]
[314184675,1708053039159,-500.0,0.00038356,7]
[314184676,1708053039168,-622.60739586,0.00038356,7]
[314184677,1708053039177,-572.19940751,0.00038356,7]
[314184678,1708053039187,-500.0,0.00038356,7]
[314184679,1708053039197,-500.0,0.00038356,7]
[314184680,1708053039206,-1321.96,0.00038356,7]
[314184681,1708053039218,-500.0,0.00038356,7]
[314184682,1708053039228,-500.0,0.00038356,7]
[314184683,1708053039237,-551.39109692,0.00038356,7]
[314184684,1708053039246,-500.0,0.00038356,7]
[314184685,1708053039256,-530.6533288,0.00038356,7]
[314184686,1708053039265,-623.74,0.00038356,7]
[314184687,1708053039275,-570.56386932,0.00038356,7]
[314184688,1708053039284,-500.0,0.00038356,7]
[314184689,1708053039293,-500.0,0.00038356,7]
[314184690,1708053039302,-500.0,0.00038356,7]
[314184691,1708053039311,-500.0,0.00038356,7]
[314184692,1708053039320,-414.63228302,0.00038356,7]
[314184693,1708053039329,-575.41845283,0.00038356,7]
[314184694,1708053039339,-500.0,0.00038356,7]
[314184695,1708053039348,-576.41785819,0.00038356,7]
[314184696,1708053039357,-164.322404,0.00038356,7]
[314184697,1708053039366,-589.12256117,0.00038356,7]
[314184698,1708053039375,-500.0,0.00038356,7]
[314184699,1708053039385,-500.0,0.00038356,7]
[314184700,1708053039394,-500.0,0.00038356,7]
[314184701,1708053039403,-500.0,0.00038356,7]
[314184702,1708053039413,-500.0,0.00038356,7]
[314184703,1708053039422,-500.0,0.00038356,7]
[314184704,1708053039431,-500.0,0.00038356,7]
[314184705,1708053039441,-500.0,0.00038356,7]
[314184706,1708053039450,-500.0,0.00038356,7]
[314184707,1708053039460,-500.0,0.00038356,7]
[314184708,1708053039469,-568.00669328,0.00038356,7]
[314184709,1708053039478,-500.0,0.00038356,7]
[314184710,1708053039489,-578.19,0.00038356,7]
[314184711,1708053039500,-500.0,0.00038356,7]
[314184712,1708053039510,-500.0,0.00038356,7]
[314184713,1708053039520,-500.0,0.00038356,7]
[314184714,1708053039531,-500.0,0.00038356,7]
[314184715,1708053039543,-530.62392186,0.00038356,7]
[314184716,1708053039552,-536.41544918,0.00038356,7]
[314184717,1708053039562,-500.0,0.00038356,7]
[314184718,1708053039571,-561.63568545,0.00038356,7]
[314184719,1708053039581,-500.0,0.00038356,7]
[314184720,1708053039590,-1023.77,0.00038356,7]
[314184721,1708053039599,-631.40298891,0.00038356,7]
[314184722,1708053039608,-500.0,0.00038356,7]
[314184723,1708053039619,-596.00071743,0.00038356,7]
[314184724,1708053039628,-535.64257057,0.00038356,7]
[314184725,1708053039639,-500.0,0.00038356,7]
[314184726,1708053039649,-500.0,0.00038356,7]
[314184727,1708053039660,-529.1455566,0.00038356,7]
[314184728,1708053039670,-519.6906646,0.00038356,7]
[314184729,1708053039680,-500.0,0.00038356,7]
[314184730,1708053039690,-500.0,0.00038356,7]
[314184731,1708053039701,-500.0,0.00038356,7]
[314184732,1708053039712,-530.61682229,0.00038356,7]
[314184733,1708053039721,-500.0,0.00038356,7]
[314184734,1708053039732,-500.0,0.00038356,7]
[314184735,1708053039741,-500.0,0.00038356,7]
[314184736,1708053039751,-500.0,0.00038356,7]
[314184737,1708053039761,-500.0,0.00038356,7]
[314184738,1708053039772,-569.93,0.00038356,7]
[314184739,1708053039782,-500.0,0.00038356,7]
[314184740,1708053039793,-500.0,0.00038356,7]
[314184741,1708053039804,-500.0,0.00038356,7]
[314184742,1708053039814,-584.68052669,0.00038356,7]
[314184743,1708053039824,-5694.96,0.00038356,7]
[314184744,1708053039833,-500.0,0.00038356,7]
[314184745,1708053039843,-500.0,0.00038356,7]
[314184746,1708053039853,-500.0,0.00038356,7]
[314184747,1708053039862,-500.0,0.00038356,7]
[314184748,1708053039871,-169.75369119,0.00038356,7]
[314184749,1708053039881,-353.07809425,0.00038356,7]
[314184750,1708053039891,-570.42069965,0.00038356,7]
[314184751,1708053039899,-361.09851034,0.00038356,7]
[314184752,1708053039909,-5929.91,0.00038356,7]
[314184753,1708053039921,-500.0,0.00038356,7]
[314184754,1708053039930,-500.0,0.00038356,7]
[314184755,1708053039940,-500.0,0.00038356,7]
[314184756,1708053039949,-500.0,0.00038356,7]
[314184757,1708053039958,-500.0,0.00038356,7]
[314184758,1708053039968,-576.21698247,0.00038356,7]
[314184759,1708053039977,-500.0,0.00038356,7]
[314184760,1708053039987,-500.0,0.00038356,7]
[314184761,1708053039996,-500.0,0.00038356,7]
[314184762,1708053040006,-1139.26,0.00038356,7]
[314184763,1708053040020,-500.0,0.00038356,7]
[314184764,1708053040030,-630.51779054,0.00038356,7]
[314184765,1708053040039,-500.0,0.00038356,7]
[314184766,1708053040049,-500.0,0.00038356,7]
[314184767,1708053040059,-500.0,0.00038356,7]
[314184768,1708053040069,-500.0,0.00038356,7]
[314184769,1708053040079,-608.02341481,0.00038356,7]
[314184770,1708053040089,-500.0,0.00038356,7]
[314184771,1708053040099,-500.0,0.00038356,7]
[314184772,1708053040109,-594.19727419,0.00038356,7]
[314184773,1708053040119,-500.0,0.00038356,7]
[314184774,1708053040128,-500.0,0.00038356,7]
[314184775,1708053040139,-500.0,0.00038356,7]
[314184776,1708053040148,-500.0,0.00038356,7]
[314184777,1708053040158,-500.0,0.00038356,7]
[314184778,1708053040168,-569.42022458,0.00038356,7]
[314184779,1708053040177,-604.58089464,0.00038356,7]
[314184780,1708053040186,-857.1,0.00038356,7]
[314184781,1708053040196,-500.0,0.00038356,7]
[314184782,1708053040206,-602.43516096,0.00038356,7]
[314184783,1708053040215,-500.0,0.00038356,7]
[314184784,1708053040225,-500.0,0.00038356,7]
[314184785,1708053040234,-572.0,0.00038356,7]
[314184786,1708053040244,-500.0,0.00038356,7]
[314184787,1708053040253,-500.0,0.00038356,7]
[314184788,1708053040262,-586.42154646,0.00038356,7]
[314184789,1708053040272,-500.0,0.00038356,7]
[314184790,1708053040282,-342.0,0.00038356,7]
[314184791,1708053040291,-500.0,0.00038356,7]
[314184792,1708053040300,-500.0,0.00038356,7]
[314184793,1708053040309,-500.0,0.00038356,7]
[314184794,1708053040318,-500.0,0.00038356,7]
[314184795,1708053040327,-500.0,0.00038356,7]
[314184796,1708053040337,-401.0,0.00038356,7]
[314184797,1708053040345,-500.0,0.00038356,7]
[314184798,1708053040354,-500.0,0.00038356,7]
[314184799,1708053040363,-500.0,0.00038356,7]
[314184800,1708053040373,-250.0,0.00038356,7]
[314184801,1708053040382,-500.0,0.00038356,7]
[314184802,1708053040392,-500.0,0.00038356,7]
[314184803,1708053040401,-437.96504203,0.00038356,7]
[314184804,1708053040410,-500.0,0.00038356,7]
[314184805,1708053040420,-519.9,0.00038356,7]
[314184806,1708053040429,-500.0,0.00038356,7]
[314184807,1708053040438,-500.0,0.00038356,7]
[314184808,1708053040447,-500.0,0.00038356,7]
[314184809,1708053040456,-500.0,0.00038356,2]
[314184810,1708053040465,-1953.44,0.00038356,15]
[314184811,1708053040475,-155.04,0.00038356,2]
[314184812,1708053040484,-151.021624,0.00038448,24]
[314184813,1708053040493,-500.0,0.00038468,2]
[314184814,1708053040502,-175.0,0.00038489,7]
[314184815,1708053040512,-157.52023726,0.00038519,8]
[314184816,1708053040521,-270.15,0.00038526,2]
[314184817,1708053040531,-151.021624,0.00038548,24]
[314184818,1708053040540,-500.0,0.0003858,2]
[314184819,1708053040549,-393.0930504,0.00038618,2]
[314184820,1708053040558,-75653.7244867,0.0003862,3]
[314184821,1708053040567,-175.0,0.00038626,7]
[314184822,1708053040577,-1926.23,0.0003863,7]
[314184823,1708053040586,-284.78786908,0.0003863,7]
[314184825,1708053040595,-500.0,0.0003863,7]
[314184826,1708053040605,-500.0,0.0003863,7]
[314184827,1708053040614,-269.46595323,0.0003863,7]
[314184828,1708053040625,-500.0,0.0003863,7]
[314184829,1708053040636,-500.0,0.0003863,7]
[314184830,1708053040646,-500.0,0.0003863,7]
[314184831,1708053040655,-500.0,0.0003863,7]
[314184832,1708053040664,-500.0,0.0003863,7]
[314184833,1708053040674,-500.0,0.0003863,7]
[314184834,1708053040683,-500.0,0.0003863,7]
[314184835,1708053040692,-500.0,0.0003863,7]
[314184836,1708053040701,-1321.96,0.0003863,7]
[314184837,1708053040710,-500.0,0.0003863,7]
[314184838,1708053040721,-500.0,0.0003863,7]
[314184839,1708053040731,-500.0,0.0003863,7]
[314184840,1708053040741,-623.74,0.0003863,7]
[314184841,1708053040751,-500.0,0.0003863,7]
[314184842,1708053040760,-500.0,0.0003863,7]
[314184843,1708053040770,-500.0,0.0003863,7]
[314184844,1708053040779,-500.0,0.0003863,7]
[314184845,1708053040788,-500.0,0.0003863,7]
[314184846,1708053040797,-160.56522104,0.0003863,7]
[314184847,1708053040806,-205.39830933,0.0003863,7]
[314184848,1708053040816,-500.0,0.0003863,7]
[314184849,1708053040825,-500.0,0.0003863,7]
[314184850,1708053040834,-601.21442329,0.0003863,7]
[314184851,1708053040843,-500.0,0.0003863,7]
[314184852,1708053040853,-618.85279716,0.0003863,7]
[314184853,1708053040861,-500.0,0.0003863,7]
[314184854,1708053040870,-500.0,0.0003863,7]
[314184855,1708053040879,-500.0,0.0003863,7]
[314184856,1708053040889,-578.19,0.0003863,7]
[314184857,1708053040898,-500.0,0.0003863,7]
[314184858,1708053040907,-500.0,0.0003863,7]
[314184859,1708053040916,-500.0,0.0003863,7]
[314184860,1708053040925,-500.0,0.0003863,7]
[314184861,1708053040934,-581.92854167,0.0003863,7]
[314184862,1708053040943,-1023.77,0.0003863,7]
[314184863,1708053040953,-500.0,0.0003863,7]
[314184864,1708053040962,-500.0,0.0003863,7]
[314184865,1708053040971,-500.0,0.0003863,7]
[314184866,1708053040981,-500.0,0.0003863,7]
[314184867,1708053040990,-604.88209581,0.0003863,7]
[314184868,1708053040999,-500.0,0.0003863,7]
[314184869,1708053041009,-500.0,0.0003863,7]
[314184870,1708053041018,-279.0878265,0.0003863,7]
[314184871,1708053041031,-227.48037839,0.0003863,7]
[314184872,1708053041040,-500.0,0.0003863,7]
[314184873,1708053041050,-500.0,0.0003863,7]
[314184874,1708053041059,-569.93,0.0003863,7]
[314184875,1708053041071,-500.0,0.0003863,7]
[314184876,1708053041081,-5694.96,0.0003863,7]
[314184877,1708053041090,-500.0,0.0003863,7]
[314184878,1708053041100,-500.0,0.0003863,7]
[314184879,1708053041109,-500.0,0.0003863,7]
[314184880,1708053041118,-5929.91,0.0003863,7]
[314184881,1708053041127,-500.0,0.0003863,7]
[314184882,1708053041138,-500.0,0.0003863,7]
[314184883,1708053041147,-533.74021359,0.0003863,7]
[314184884,1708053041156,-500.0,0.0003863,7]
[314184885,1708053041166,-500.0,0.0003863,7]
[314184886,1708053041175,-238.13108209,0.0003863,7]
[314184887,1708053041185,-500.0,0.0003863,7]
[314184888,1708053041194,-500.0,0.0003863,7]
[314184889,1708053041203,-1139.26,0.0003863,7]
[314184890,1708053041213,-500.0,0.0003863,7]
[314184891,1708053041222,-500.0,0.0003863,7]
[314184892,1708053041231,-500.0,0.0003863,7]
[314184893,1708053041241,-500.0,0.0003863,7]
[314184894,1708053041249,-500.0,0.0003863,7]
[314184895,1708053041259,-500.0,0.0003863,7]
[314184896,1708053041269,-500.0,0.0003863,7]
[314184897,1708053041279,-500.0,0.0003863,7]
[314184898,1708053041289,-188.14385199,0.0003863,7]
[314184899,1708053041298,-857.1,0.0003863,7]
[314184900,1708053041307,-356.34746043,0.0003863,7]
[314184901,1708053041317,-500.0,0.0003863,7]
[314184902,1708053041326,-500.0,0.0003863,7]
[314184903,1708053041335,-500.0,0.0003863,7]
[314184904,1708053041347,-500.0,0.0003863,7]
[314184905,1708053041357,-500.0,0.0003863,7]
[314184906,1708053041366,-500.0,0.0003863,7]
[314184907,1708053041376,-341.53978919,0.0003863,7]
[314184908,1708053041387,-309.16666785,0.0003863,7]
[314184909,1708053041396,-500.0,0.0003863,7]
[314184910,1708053041406,-612.25967779,0.0003863,7]
[314184911,1708053041416,-500.0,0.0003863,7]
[314184912,1708053041426,-500.0,0.0003863,7]
[314184913,1708053041435,-519.9,0.0003863,7]
[314184914,1708053041445,-231.82343735,0.0003863,7]
[314184915,1708053041455,-500.0,0.0003863,7]
[314184916,1708053041464,-151.021624,0.00038648,24]
[314184917,1708053041474,-500.0,0.00038692,2]
[314184918,1708053041483,-379.44,0.000387,2]
[314184919,1708053041494,-572.0,0.00038701,7]
[314184920,1708053041507,-342.0,0.00038701,7]
[314184921,1708053041518,-400.0,0.00038701,7]
[314184922,1708053041527,-150.0,0.00038701,7]
[314184923,1708053041538,-528.71137031,0.00038719,2]
[314184924,1708053041548,-177.38,0.00038728,2]
[314184925,1708053041558,-151.021624,0.00038748,24]
[314184926,1708053041569,-175.0,0.00038763,7]
[314184927,1708053041579,-1187.16853599,0.00038765,2]
[314184928,1708053041588,-500.0,0.00038803,2]
[314184929,1708053041598,-75653.7244867,0.0003881,3]
[314184930,1708053041608,-220.86804314,0.00038819,7]